Cogmind - Beta 16 @@@ ROGUE MODE // 2026.01.27 @ 13:05:58 Player: applejuice Result: Destroyed by S-27 Virus with Autogun Performance ------------- Evolutions (3) 1500 Regions Visited (6) 1200 Robots Destroyed (80) 400 Value Destroyed (2504) 2504 Prototype IDs (3) 60 Alien Tech Used (0) 0 Bonus (0) 0 TOTAL SCORE: 5664 Bonus ------- None Cogmind --------- Core Integrity 0/700 Matter 66/300 Energy 39/150 System Corruption 4% Temperature Cool (0) Movement Flying (37) Location -7/Factory Parts ------- > --- POWER (1) -------- Micro Nuclear Core > --- PROPULSION (4) --- Xenon Bombardment Thruster Xenon Bombardment Thruster > --- UTILITY (6) ------ Transmission Jammer Hacking Suite Hacking Suite Corruption Screen > --- WEAPON (2) ------- Gauss Rifle > --- INVENTORY (5) ---- Aluminum Leg Heavy Rocket Launcher Power Maul Peak State ------------ > --- POWER ------------ Micro Nuclear Core > --- PROPULSION ------- Improved Carbon-fiber Leg Improved Carbon-fiber Leg Improved Carbon-fiber Leg Improved Carbon-fiber Leg > --- UTILITY ---------- Medium Storage Unit Improved Sensor Array Improved Signal Interpreter Improved Terrain Scan Processor Hacking Suite Hacking Suite > --- WEAPON ----------- Advanced Assault Cannon Advanced Assault Cannon > --- INVENTORY -------- Nuclear Core Aluminum Leg Cesium-ion Thruster Xenon Bombardment Thruster Xenon Bombardment Thruster Xenon Bombardment Thruster System Shield Gauss Rifle Heavy Rocket Launcher Great Maul [Rating: 47] Favorites ----------- Power Heavy Ion Engine Engine Heavy Ion Engine Power Core Micro Nuclear Core Propulsion Aluminum Leg Treads Light Treads Leg Aluminum Leg Wheel Wheel Flight Unit Xenon Bombardment Thruster Utility Hacking Suite Device Improved Sensor Array Storage Medium Storage Unit Processor Targeting Computer Hackware Hacking Suite Weapon Improved Assault Rifle Energy Gun Particle Gun Ballistic Gun Improved Assault Rifle Ballistic Cannon Improved Light Cannon Launcher Rocket Launcher Impact Weapon Great Maul Build | -11 -10 -9 -8 -7 -7 -7 ------- Run | Yrd Mat Mat Mat Fac Was Fac Slots Evolved 6 | . . 2 2 2 . . Power . | . . . . . . . Propulsion 2 | . . . 2 . . . Utility 4 | . . 2 . 2 . . Weapon . | . . . . . . . Parts Attached 86 | 6 3 10 29 24 2 12 Power 10 | 1 . 1 5 1 . 2 Engine 7 | 1 . 1 4 . . 1 Core 3 | . . . 1 1 . 1 Reactor . | . . . . . . . Propulsion 37 | 2 . 5 11 13 2 4 Treads 1 | . . . 1 . . . Leg 23 | 2 . 5 10 6 . . Wheel 3 | . . . . 3 . . Hover . | . . . . . . . Flight 10 | . . . . 4 2 4 Utility 18 | 1 2 2 4 5 . 4 Device 5 | . . 1 1 1 . 2 Storage 2 | 1 1 . . . . . Processor 7 | . 1 1 2 2 . 1 Hackware 4 | . . . 1 2 . 1 Protection . | . . . . . . . Artifact . | . . . . . . . Weapon 21 | 2 1 2 9 5 . 2 Energy Gun 4 | . . . 4 . . . Energy Cannon . | . . . . . . . Ballistic Gun 8 | 2 . 1 3 1 . 1 Ballistic Cannon 4 | . . 1 1 2 . . Launcher 2 | . . . 1 . . 1 Special Weapon . | . . . . . . . Impact Weapon 3 | . 1 . . 2 . . Slashing Weapon . | . . . . . . . Piercing Weapon . | . . . . . . . Special Melee Weapon . | . . . . . . . Unidentified Prototypes 3 | . . . 3 . . . Parts Lost 35 | . . 4 15 7 5 4 Power 3 | . . 1 2 . . . Propulsion 18 | . . 1 8 3 3 3 Utility 5 | . . . 2 2 . 1 Weapon 9 | . . 2 3 2 2 . Highest Loss Streak 8 | . . 2 8 3 5 2 To Critical Strikes . | . . . . . . . Average Backups 8 | 1 4 8 9 8 8 4 Power 1 | . 1 1 1 . 1 1 Propulsion 1 | . . 1 1 1 2 1 Utility 1 | . . 2 2 1 . . Weapon 3 | . 2 3 4 3 3 2 Tool/Special . | . . . . . . . Unused Backups 7 | . . 1 2 3 1 . Power 1 | . . . . 1 . . Propulsion 1 | . . . . 1 . . Utility 2 | . . . 1 . 1 . Weapon 2 | . . 1 1 . . . Tool/Special 1 | . . . . 1 . . Average Slot Usage (%) 90 | . 92 99 95 92 75 39 Engine 5 | . 14 10 6 3 . 1 Core 2 | . . . 2 3 5 . Leg 19 | . 28 21 32 14 . . Flight 6 | . . . . 12 7 9 Device 6 | . . 11 5 8 5 2 Storage 7 | . 14 11 9 7 5 . Processor 15 | . 7 21 15 15 4 4 Hackware 7 | . . . 5 11 15 15 Ballistic Gun 9 | . 27 19 9 6 . . Ballistic Cannon 2 | . . 2 4 1 12 . Impact Weapon 1 | . . . . 3 . 3 Peak Build Rating 47 | 6 8 13 27 47 36 34 Average Rating 25 | 4 6 10 21 35 27 20 On Entrance 14 | . 6 7 13 26 35 11 Avg Prop Armor Cover (%) 3 | . . . 8 2 2 . Naked Turns . | . . . . . . . Heaviest Build 31 | 13 19 25 26 31 31 14 Greatest Support 72 | 20 20 20 45 72 36 18 Greatest Overweight (x) 6 | . . 1 6 3 . 1 Average Overweight (x) . | . . . . . . . Largest Inventory Capacity 10 | 8 10 10 10 10 10 5 Average Capacity 9 | 6 8 10 10 10 8 5 Most Carried 10 | 2 8 10 10 10 9 5 Average Carried 8 | 1 4 8 9 8 7 4 Final Capacity 10 | 8 10 10 10 10 5 5 Final Carried 10 | 2 8 10 10 9 5 3 Class Distribution -------------------- 51% | Scavenger-Mutant 20% | Mutant 14% | Hacker-Mutant 12% | Hacker-Sprinter Dominant Class ---------------- Mutant | -10/Materials Mutant | -9/Materials Scavenger-Mutant | -8/Materials Scavenger-Mutant | -7/Factory Scavenger-Mutant | -7/Waste Hacker-Mutant | -7/Factory Resources | -11 -10 -9 -8 -7 -7 -7 ----------- Run | Yrd Mat Mat Mat Fac Was Fac Matter Collected 2493 | 207 81 535 950 651 . 69 Remotely . | . . . . . . . Salvage Created 2815 | . 81 478 1403 705 . 148 Parts 133 | . 6 26 66 32 . 3 Haulers Intercepted 4 | . 1 . 2 . . 1 Recyclers Shooed 3 | . 2 . 1 . . . Parts Field Recycled . | . . . . . . . Retrieved Matter . | . . . . . . . Parts Self-Destructed . | . . . . . . . Prevented . | . . . . . . . Parts Restored . | . . . . . . . Kills | -11 -10 -9 -8 -7 -7 -7 ------- Run | Yrd Mat Mat Mat Fac Was Fac Combat Hostiles Destroyed 53 | . 1 10 28 11 . 3 Guns 32 | . 1 9 17 5 . . Cannons 9 | . . 1 6 2 . . AOE 9 | . . . 5 1 . 3 Classes Destroyed 13 | . 2 3 4 3 . 1 Worker 2 | . . . . . . 2 Builder 4 | . . . 1 3 . . Tunneler 1 | . . . . 1 . . Hauler 4 | . 1 . 2 . . 1 Recycler 6 | . . . 2 3 . 1 Mechanic 2 | . . . . 2 . . Operator 5 | . . 2 1 2 . . Watcher 3 | . . 1 2 . . . Swarmer 11 | . . . 6 2 . 3 Grunt 24 | . 1 9 12 2 . . Sentry 10 | . . 1 8 1 . . Hunter 4 | . . . 2 2 . . Programmer 4 | . . . . 4 . . Best Kill Streak 8 | . 1 3 4 8 . 3 Combat Bots Only 3 | . 1 3 3 3 . 3 Max Kills in Single Turn 3 | . 1 1 2 3 . 3 Gunslinging 1 | . . . 1 . . . Exploded 3 | . . . 2 1 . 3 Melee . | . . . . . . . Uniques/NPCs Destroyed . | . . . . . . . Combat | -11 -10 -9 -8 -7 -7 -7 -------- Run | Yrd Mat Mat Mat Fac Was Fac Hostile Shots Fired 467 | . 12 72 178 131 3 71 Missed 154 | . 2 20 53 44 . 35 Hits 313 | . 10 52 125 87 3 36 Melee 3 | . . . . . 3 . Projectile 310 | . 10 52 125 87 . 36 AOE 1 | . . . . 1 . . Critical Strikes 12 | . . 1 6 3 2 . Damage Taken 4888 | . 144 691 1988 1410 139 516 Core 1187 | . 30 92 363 351 52 299 Absorbed by Shields . | . . . . . . . Core Remaining (%) 74 | 100 88 77 34 . . . Volleys Fired 211 | . 14 59 96 40 . 2 Largest 2 | . 2 2 2 2 . 1 Hottest 130 | . 40 56 130 80 . 39 Shots Fired 416 | . 27 116 188 83 . 2 Gun 330 | . 27 108 141 53 . 1 Cannon 83 | . . 8 45 30 . . Launcher 3 | . . . 2 . . 1 Special . | . . . . . . . Kinetic 356 | . 27 116 129 83 . 1 Thermal 49 | . . . 49 . . . Explosive 3 | . . . 2 . . 1 Electromagnetic 8 | . . . 8 . . . Robot Hit Streak 22 | . 8 9 22 13 . 1 Robot Miss Streak 3 | . 1 2 3 2 . 1 Penetration Max 1 | . . . 1 . . . Secondary Targets 2 | . . . 1 1 . . Max Gunslinging Chain 1 | . . . 1 1 . . Shots Hit Robots 316 | . 20 78 139 73 . 6 Core Hits 125 | . 8 24 60 30 . 3 Critical Kills 1 | . . . . 1 . . Critical Parts Destroyed 10 | . . . 3 5 . 2 Critical Strikes 17 | . . . 7 8 . 2 Burn 2 | . . . 2 . . . Destroy 3 | . . . 3 . . . Blast 4 | . . . 2 2 . . Smash 8 | . . . . 6 . 2 Melee Attacks 58 | . 1 . . 45 . 12 Impact 58 | . 1 . . 45 . 12 Slashing . | . . . . . . . Piercing . | . . . . . . . Sneak Attacks 9 | . . . . 5 . 4 Combat Hostiles . | . . . . . . . Follow-up Attacks . | . . . . . . . Damage Inflicted 6847 | . 210 940 2887 2132 . 678 Guns 3549 | . 204 882 1850 613 . . Cannons 1103 | . . 58 632 413 . . Explosions 889 | . . . 393 261 . 235 Melee 1288 | . . . . 845 . 443 Ramming 18 | . 6 . 12 . . . Kinetic 3987 | . 204 940 1817 1026 . . Thermal 749 | . . . 749 . . . Explosive 715 | . . . 219 261 . 235 Electromagnetic 90 | . . . 90 . . . Impact 1288 | . . . . 845 . 443 Slashing . | . . . . . . . Piercing . | . . . . . . . Highest Corruption 9 | . . . . 3 9 9 Average Corruption 2 | . . . . 1 8 5 Corruption Purged 5 | . . . . . . 5 Corruption Blocked . | . . . . . . . Effects 43 | . . . . 30 3 10 Message Errors 12 | . . . . 8 1 3 Matter Fused 15 | . . . . 10 1 4 Heat Flow Errors 2 | . . . . 2 . . Energy Discharges 3 | . . . . 2 . 1 Parts Fused 1 | . . . . . 1 . Data Loss (minor) 5 | . . . . 3 . 2 Data Loss (major) 1 | . . . . 1 . . Misfires 3 | . . . . 3 . . Alerts 1 | . . . . 1 . . Overload Shots . | . . . . . . . Overflow Damage 862 | . . . 24 514 . 324 Projectiles 28 | . . . 3 25 . . Explosions 33 | . . . 21 12 . . Melee 801 | . . . . 477 . 324 Knockbacks 16 | . . 1 5 9 . 1 Impact 6 | . . . . 5 . 1 Kinetic 10 | . . 1 5 4 . . Secondary . | . . . . . . . Self-Inflicted Damage 193 | . . . 101 63 . 29 Shots 4 | . . . 2 1 . 1 Rammed . | . . . . . . . Targets Rammed 5 | . 2 . 3 . . . Kicked 5 | . 2 . 3 . . . Crushed . | . . . . . . . Highest Temperature 351 | . 18 9 351 272 . . Average Temperature 74 | . 9 3 92 66 . . Received Heat Transfer 1473 | . 87 390 855 141 . . Effects 1 | . . . 1 . . . Shutdowns 1 | . . . 1 . . . Siege Activations . | . . . . . . . Martial Activations . | . . . . . . . Shielding Activations . | . . . . . . . Robots Disrupted . | . . . . . . . Combat Hostiles . | . . . . . . . Robots Corrupted 8 | . . . . 7 . 1 Combat Hostiles 3 | . . . . 3 . . Parts Fried 8 | . . . . 4 . 4 Impact Corruptions 24 | . . . . 20 . 4 Robots Melted . | . . . . . . . Combat Hostiles . | . . . . . . . Parts Melted 9 | . . . 9 . . . Heat Transferred 1667 | . . . 1667 . . . Parts Sabotaged . | . . . . . . . Parts Stolen . | . . . . . . . Parts Stripped . | . . . . . . . Power Chain Reactions 2 | . . . 2 . . . Alert | -11 -10 -9 -8 -7 -7 -7 ------- Run | Yrd Mat Mat Mat Fac Was Fac Maximum Alert Level . | . . . . . . . Low Security (%) 100 | 100 100 100 100 100 100 100 Level 1 . | . . . . . . . Level 2 . | . . . . . . . Level 3 . | . . . . . . . Level 4 . | . . . . . . . Level 5 . | . . . . . . . High Security . | . . . . . . . Max Security . | . . . . . . . Peak Influence 190 | . 45 75 138 190 64 160 Initial 64 | . . 3 11 57 64 . Average 40 | . 8 24 45 49 36 25 Influence Increases 2341 | . 84 380 873 709 . 295 Destroy 0b10 Robot/C 1060 | . 20 200 560 220 . 60 Destroy 0b10 Robot/NC 130 | . 5 15 40 50 . 20 Destroy Leader 304 | . 12 62 148 70 . 12 Successful Hack 183 | . 17 23 25 113 . 5 Disable Machine 150 | . 15 . 45 90 . . Destroy Structure 109 | . . 5 25 61 . 18 Partial Spotted 30 | . . . . . . 30 Lose Combat Pursuer 375 | . 15 75 30 105 . 150 Influence Decreases 2202 | . 74 363 773 653 183 156 Entered New Map 212 | . . 7 16 70 119 . Time Decay 1380 | . 74 249 504 407 30 116 Lost Part 294 | . . 40 134 46 34 40 Lost Ally 10 | . . . . 10 . . Purge Threat 306 | . . 67 119 120 . . Squads Dispatched 26 | . 2 2 6 13 . 3 Investigation 12 | . . . 2 7 . 3 Extermination 5 | . . . . 5 . . Reinforcement 9 | . 2 2 4 1 . . Assault . | . . . . . . . Garrison . | . . . . . . . Intercept . | . . . . . . . Searches Triggered . | . . . . . . . Construction Impeded 1 | . . . 1 . . . Haulers Reinforced . | . . . . . . . Active Scanning Responses . | . . . . . . . Cargo Convoy Interrupts . | . . . . . . . Stealth | -11 -10 -9 -8 -7 -7 -7 --------- Run | Yrd Mat Mat Mat Fac Was Fac Distress Signals 4 | . . 1 . 1 . 2 Communications Jammed 9 | . . . . . . 9 Distress Signals 3 | . . . . . . 3 Times Spotted 127 | . 4 20 42 33 6 22 Peak Tracking Total 9 | . 2 5 5 4 6 9 Tactical Retreats 17 | . 1 2 2 6 . 6 ECM-based Alert Blocks 4 | . . . . 4 . . Traps | -11 -10 -9 -8 -7 -7 -7 ------- Run | Yrd Mat Mat Mat Fac Was Fac Traps Triggered 7 | . . . 2 5 . . Indirectly . | . . . . . . . Trap Hack Attempts . | . . . . . . . Triggered . | . . . . . . . Disarmed . | . . . . . . . Reprogrammed . | . . . . . . . Reused . | . . . . . . . Traps Extracted . | . . . . . . . Installed . | . . . . . . . Triggered . | . . . . . . . Machines | -11 -10 -9 -8 -7 -7 -7 ---------- Run | Yrd Mat Mat Mat Fac Was Fac Machines Disabled 10 | . 1 . 3 6 . . Max in Single Turn 2 | . 1 . 1 2 . . Garrison Access 1 | . . . . 1 . . Machines Repaired . | . . . . . . . Machines Dismantled . | . . . . . . . Machines Sabotaged . | . . . . . . . Overloaded Fab Kills . | . . . . . . . Hacking | -11 -10 -9 -8 -7 -7 -7 --------- Run | Yrd Mat Mat Mat Fac Was Fac Machines Accessed 42 | . 5 5 7 19 . 6 Terminals 32 | . 5 5 7 13 . 2 Fabricators 7 | . . . . 4 . 3 Repair Stations . | . . . . . . . Recycling Units . | . . . . . . . Scanalyzers 1 | . . . . 1 . . Garrison Access 2 | . . . . 1 . 1 Total Hacks 122 | . 11 11 25 54 . 21 Successful 58 | . 3 5 12 28 . 10 Failed 64 | . 8 6 13 26 . 11 Catastrophic 9 | . . 1 2 5 . 1 Database Lockouts . | . . . . . . . Manual 85 | . 11 11 25 28 . 10 Terminals 92 | . 11 11 25 35 . 10 Fabricators 19 | . . . . 11 . 8 Repair Stations . | . . . . . . . Recycling Units . | . . . . . . . Scanalyzers 7 | . . . . 7 . . Garrison Access 4 | . . . . 1 . 3 Terminal Hacks 19 | . 1 2 6 9 . 1 Part Schematic 4 | . 1 . 1 2 . . Level Access Points 1 | . . . . 1 . . Branch Access Points 1 | . . . . 1 . . Terminal Index 4 | . . 1 1 1 . 1 Fabricator Index 1 | . . . 1 . . . Unreport Threat 5 | . . 1 3 1 . . Extermination Status 1 | . . . . 1 . . Recall Investigation 1 | . . . . 1 . . Recall Extermination 1 | . . . . 1 . . Fabricator Hacks 14 | . . . . 8 . 6 Network Status 1 | . . . . 1 . . Load Schematic 7 | . . . . 4 . 3 Build 6 | . . . . 3 . 3 Repair Station Hacks . | . . . . . . . Recycling Unit Hacks . | . . . . . . . Scanalyzer 4 | . . . . 4 . . Insert Component 2 | . . . . 2 . . Analyze 1 | . . . . 1 . . Retrieve Study 1 | . . . . 1 . . Garrison Access Hacks 1 | . . . . 1 . . Seal Access 1 | . . . . 1 . . Unauthorized Hacks 20 | . 2 3 6 6 . 3 Terminals 20 | . 2 3 6 6 . 3 Assimilate 5 | . . . 1 3 . 1 Botnet 15 | . 2 3 5 3 . 2 Fabricators . | . . . . . . . Repair Stations . | . . . . . . . Recycling Units . | . . . . . . . Scanalyzers . | . . . . . . . Garrison Access . | . . . . . . . Data Cores Recovered . | . . . . . . . Used . | . . . . . . . Hacking Detections 41 | . 5 5 7 18 . 6 Full Trace Events 11 | . . . 1 7 . 3 Feedback Events . | . . . . . . . Feedback Blocked . | . . . . . . . Robot Schematics Acquired . | . . . . . . . Robots Built . | . . . . . . . Authchips . | . . . . . . . Time . | . . . . . . . Total Robot Build Rating . | . . . . . . . Part Schematics Acquired 5 | . 1 . 1 3 . . Parts Built 11 | . . . . 6 . 5 Authchips . | . . . . . . . Time 372 | . . . . 210 . 162 Total Part Build Rating 43 | . . . . 24 . 19 Part Studies Acquired 1 | . . . . 1 . . Parts Repaired . | . . . . . . . Time . | . . . . . . . Parts Recycled . | . . . . . . . Recycled Matter . | . . . . . . . Retrieved Matter . | . . . . . . . Retrieved Components . | . . . . . . . Parts Scanalyzed 1 | . . . . 1 . . Part Schematics Acquired 1 | . . . . 1 . . Parts Damaged . | . . . . . . . Bothacking | -11 -10 -9 -8 -7 -7 -7 ------------ Run | Yrd Mat Mat Mat Fac Was Fac Used RIF Installer . | . . . . . . . Robots Hacked . | . . . . . . . Non-combat . | . . . . . . . Combat . | . . . . . . . Robot Hacks Applied . | . . . . . . . Relay Couplers Released . | . . . . . . . Fabnet Peak Effective % . | . . . . . . . Robots Rewired . | . . . . . . . Allies Hacked . | . . . . . . . Hacks Repelled . | . . . . . . . Allies | -11 -10 -9 -8 -7 -7 -7 -------- Run | Yrd Mat Mat Mat Fac Was Fac Total Allies 4 | . . . . 3 . 1 Largest Group 2 | . . . . 2 . 1 Highest-Rated Group 52 | . . . . 52 . 10 Highest-Rated Ally 26 | . . . . 26 . 10 Total Orders 1 | . . . . 1 . . STAY 1 | . . . . 1 . . Ally Attacks . | . . . . . . . Total Damage . | . . . . . . . Kills . | . . . . . . . Allies Corrupted 1 | . . . . 1 . . Allies Melted . | . . . . . . . Intel | -11 -10 -9 -8 -7 -7 -7 ------- Run | Yrd Mat Mat Mat Fac Was Fac Active Infowar (turns) 4445 | . . 901 902 2575 . 67 Sensors 4378 | . . 901 902 2575 . . Jamming 67 | . . . . . . 67 ECM 18 | . . . . 18 . . Robot Analysis Total . | . . . . . . . Derelict Logs Recovered . | . . . . . . . Drone Launches . | . . . . . . . Drone Recoveries . | . . . . . . . Exploration | -11 -10 -9 -8 -7 -7 -7 ------------- Run | Yrd Mat Mat Mat Fac Was Fac Turns Passed 6255 | 57 319 901 1634 2816 90 438 Spaces Moved 4371 | 43 208 414 866 2109 137 594 Core 9 | 7 . . 2 . . . Treads . | . . . . . . . Legs 2150 | 36 208 414 864 628 . . Wheels 269 | . . . . 199 70 . Hover . | . . . . . . . Flight 1943 | . . . . 1282 67 594 Fastest Speed 29 | 50 120 120 120 29 32 34 Average Speed 85 | 108 120 138 121 70 63 38 Slowest Speed 350 | 120 120 190 350 330 86 117 Overloaded Moves . | . . . . . . . Propulsion Burnouts . | . . . . . . . Robots Hopped 16 | . . . . 5 . 11 Potential Cave-ins . | . . . . . . . Cave-ins Triggered . | . . . . . . . Exploration Rate (%) 42 | 4 39 30 70 50 90 16 Regions Visited 6 Branch Regions . Pre-discovered Areas . | . . . . . . . Known Exits Taken 2 | . . 1 1 . . . Unknown Exits Taken 2 | 1 1 . . . . . Scrap Searched . | . . . . . . . Spaces Dug 27 | . . . . 22 . 5 Terrain Destroyed 104 | . . 2 24 60 . 18 Melee 27 | . . . . 22 . 5 Projectile 8 | . . 2 2 4 . . AOE 69 | . . . 22 34 . 13 Terrain Rammed . | . . . . . . . Walls Destroyed . | . . . . . . . Machines Disabled . | . . . . . . . Actions | -11 -10 -9 -8 -7 -7 -7 --------- Run | Yrd Mat Mat Mat Fac Was Fac Total 6367 | 50 249 629 1258 3278 140 763 Wait 1526 | . 14 141 224 1002 . 145 Move 4337 | 42 207 413 865 2099 136 575 Hop 13 | . . . . 5 . 8 Pick Up 37 | 2 6 3 11 14 . 1 Fast Attach 45 | 6 1 2 16 12 . 8 Attach 36 | . . 4 11 12 2 7 Detach 14 | . . . 4 5 1 4 Swap 30 | . 3 5 12 10 . . Drop 40 | . 1 2 16 19 1 1 Fire 211 | . 14 59 96 40 . 2 Melee 58 | . 1 . . 45 . 12 Ram . | . . . . . . . Kick 5 | . 2 . 3 . . . Crush . | . . . . . . . Escape Stasis 15 | . . . . 15 . . Rewire . | . . . . . . . Trap . | . . . . . . . Miscellaneous . | . . . . . . . Route ------- -11/Scrapyard -10/Materials (discovered 2 exits: *Mat / [*Min]) -9/Materials (discovered 2 exits: *Mat / *Sto) -8/Materials (discovered 2 exits: *Fac x2) -7/Factory (discovered 6 exits: Fac x4 / *Low x2) -7/Waste -7/Factory History --------- Turn | Location | Event 5 | -11/Scrapyard | Discovered new exit (range 16) 58 | -11/Scrapyard | Entered Materials 156 | -10/Materials | Discovered new exit (range 14) 341 | -10/Materials | Build established: Mutant 348 | -10/Materials | Discovered new exit (range 15) 377 | -10/Materials | Entered another Materials area 377 | -9/Materials | Evolved 2 slots: Utility x2 379 | -9/Materials | Discovered new exit (range 8) 400 | -9/Materials | Identified exit to Storage 1105 | -9/Materials | Discovered new exit (range 15) 1276 | -9/Materials | Identified exit to Materials 1278 | -9/Materials | Entered another Materials area 1278 | -8/Materials | Evolved 2 slots: Propulsion x2 1491 | -8/Materials | Build established: Scavenger-Mutant 1561 | -8/Materials | Lost 8 parts (1p5n2w) 1825 | -8/Materials | Core integrity fell below 50% 1861 | -8/Materials | Lost 3 parts (1p1n1u) 2317 | -8/Materials | Discovered new exit (range 4) 2321 | -8/Materials | Identified exit to Factory 2568 | -8/Materials | Discovered exit to Factory (range 4) 2912 | -8/Materials | Entered Factory 2912 | -7/Factory | Evolved 2 slots: Utility x2 3019 | -7/Factory | Discovered new exit (range 5) 3450 | -7/Factory | Discovered new exit (range 16) 3522 | -7/Factory | Identified exit to Lower Caves 4082 | -7/Factory | Fabricated Xenon Bombardment Thruster (x2) 4551 | -7/Factory | Build established: Hacker-Sprinter 5077 | -7/Factory | Fabricated Adv. ECM Suite? 5278 | -7/Factory | Identified exit to Factory 5488 | -7/Factory | Core integrity fell below 50% 5518 | -7/Factory | Lost 3 parts (2n1u) 5685 | -7/Factory | Fabricated Xenon Bombardment Thruster (x2) 5728 | -7/Factory | Sucked down chute 5728 | -7/Factory | Entered Waste 5743 | -7/Waste | EMP discharged 5758 | -7/Waste | Spotted C-40 Crusher 5759 | -7/Waste | Spotted C-40 Crusher 5759 | -7/Waste | Spotted C-40 Crusher 5759 | -7/Waste | Spotted C-40 Crusher 5759 | -7/Waste | Spotted C-40 Crusher 5789 | -7/Waste | Crushed by Compactor (1 part destroyed, 2 dropped) 5792 | -7/Waste | Crushed by Compactor (1 part destroyed, 1 dropped) 5792 | -7/Waste | Crushed by Compactor (1 part destroyed, 1 dropped) 5806 | -7/Waste | Spotted C-40 Crusher 5814 | -7/Waste | Discovered new exit (range 12) 5818 | -7/Waste | Entered Factory 5823 | -7/Factory | Lost 5 parts (3n2w) 6084 | -7/Factory | Fabricated Hacking Suite (x1) 6084 | -7/Factory | Fabricated Xenon Bombardment Thruster? 6090 | -7/Factory | Build established: Hacker-Mutant 6221 | -7/Factory | Core integrity fell below 20% 6236 | -7/Factory | Fabricated Xenon Bombardment Thruster? 6256 | -7/Factory | Destroyed by S-27 Virus with Autogun Last Messages --------------- network. Dispatching investigation squad. 06211_ S-27 Virus destroyed. 06212_ System corrupted: Component data lost. 06218_ K-01 Serf cleans the Fusion Modulator. 06219_ The unstable cave ceiling collapses. 06223_ K-01 Serf collects debris. 06223_ Slug penetrates Earth. 06226_ K-01 Serf cleans the Fusion Modulator. 06229_ Slug penetrates Earth. 06231_ R-06 Scavenger collects Lgt. Nuclear Core. 06232_ Xenon Bombardment Thruster destroyed. 06232_ Dropped Imp. Deuterium Engine. [Achievement: Production Line] 06236_ >> FABRICATOR: Completed Xenon Bombardment Thruster? 06237_ Drone signal jammed. 06245_ Acquired Xenon Bombardment Thruster. 06248_ Xenon Bombardment Thruster destroyed. 06254_ Slug penetrates Fabricator. Map ----- +----------------------------------------------------+ | ??????????????????????????? ?????????????""" """ | | ??????????????????????????? ???????????# """ """ | | ?????????????????????????""" ???????????# """ """ | | ???????????????????????""""" ???????????# | | ?????????????????????? """"" ???????????######### | | ?????????????????### ?? #?????????????????# | | ????????????????? """ #????????#####????## | | ??????????????????# """ #????????# ####### | | ??????????????????# """ * #????????# * | | ??????????????????# #????????# ####### | | ??????????????????# ########### ##?????? | | ??????????????????# #??????? | | ??????????????????# #####??????? | | ??????????????????# """""" """""" #??????????? | | ???????????????????? """""" """""" #??????????? | | ??????????????????? """""" """""" #??????????? | | ??????????????????# """""" """""" #??????????? | | ??????????????????# #??????????? | | ????????????????????# """""" """""" #??????????? | | ????????????????????# """""" """""" #??????????? | | ????????????????????#a """""" """""" #?????????? | | ????????????????????# """"""s"""""" #?????????? | | ????????????????????# ^ #?????????? | | ????????????????????# "" """""" #?????????? | | ????????????????????# """ """""" #?????????? | | ????????????????????# "F@ """""" ?????????? | | ?????????????????#+## """ """""" #????????? | | ?????????????????# "" #????????? | | ?????????????????# #????????? | | ?????????????????# #????????? | | ?????????????????# ############+### #????????? | | ?????????????????# #???????????????? #????????? | | ?? ????????????# #?????????????????? ?????????? | | ?? ????????????# #?????????????????????????????? | | ? ????????????# #?????????????????????????????? | | ?? ???????????## #?????????????????????????????? | | ? ???????????+ #?????????????????????????????? | | ?? ????????????# #?????????????????????????????? | | ?? ????????????# #?????????????????????????????? | | """ #???????????# #?????????????????????????????? | | F" #???????????# #?????????????????????????????? | | ?"" #???????????# #?????????????????????????????? | | ?? #???????????# #?????????????????????????????? | | ?? #???????????# #?????????????????????????????? | | ??? #???????????#+######????????????????????????? | | ???# #???????????# #????????????????????????? | | ####/###?????????# #????????????????????????? | | #?????????# #????????????????????????? | | ########### !!#????????????????????????? | | # # !!#????????????????????????? | +----------------------------------------------------+ Best States ------------- Heat Dissipation 34 Energy Generation 18 Energy Capacity 290 Matter Stores 300 Matter Capacity 300 Sight Range 16 Robot Scan Range 15 Terrain Scan Density 110 ECM Strength 2 Jamming Range 12 Corruption Block 8 Evasion (%) 64 Targeting Accuracy 10 Offensive Hacking 20 Defensive Hacking 10 Item Schematics ----------------- Assault Rifle | -10/Materials | Hacked Hacking Suite | -8/Materials | Hacked Cesium-ion Thruster | -7/Factory | Scanalyzed Xenon Bombardment Thruster | -7/Factory | Hacked Adv. ECM Suite | -7/Factory | Hacked Robot Schematics ------------------ None Fabricated ------------ Xenon Bombardment Thruster | x2 | -7/Factory Adv. ECM Suite | x2 | -7/Factory Xenon Bombardment Thruster | x2 | -7/Factory Xenon Bombardment Thruster | x2 | -7/Factory Hacking Suite | x1 | -7/Factory Xenon Bombardment Thruster | x2 | -7/Factory Repaired ---------- Nothing Studied --------- Cesium-ion Thruster | -7/Factory | Hacked Alien Tech Used ----------------- None Achievements -------------- Production Line Recruitment Drive Challenges ------------ None Game ------ Seed SixAntimissileDriveblaster Manual? 0 Play Time 01:12:17 Cumulative 34.8 hours Start 2026.01.27 @ 11:56:29 End 2026.01.27 @ 13:05:58 Sessions 1 Manual Loads 0 Difficulty Rogue Special Mode None Game No. 41 Rogue 41 Adventurer 0 Explorer 0 Win Type - Total 0 Types 0/0/0/0/0/0/0/0/0/0 Lore% 30 Gallery% 32 Achievement% 27 Wizard Run 0 Options --------- Layout 1 ASCII 0 Keyboard 1 Movement Numpad Keybinds 0 Fullscreen 1 Font 48/Smallcaps Map View 50x35 Zoom Use 0% Tactical HUD 1 Map Filters NONE Filters NONE Steam 1 RUN: 2c24e595-a3b2-4afe-9bcc-3eca7ab8c4f8